bitfinex-derivatives/quotes_SOLF0:USTF0_20260305
["timestamp","ask_amount","ask_price","bid_price","bid_amount"]
[1772722880165,23.35576714,90.929,90.841,16.13603636]
[1772722880766,23.35576714,90.929,90.86,9.903]
[1772722880956,23.35576714,90.929,90.841,16.13603636]
[1772722881364,23.35576714,90.929,90.848,9.905]
[1772722881660,23.35576714,90.929,90.861,16.14930993]
[1772722881864,23.35576714,90.929,90.881,9.901]
[1772722882061,23.35576714,90.949,90.861,16.14930993]
[1772722882261,23.35576714,90.949,90.84,9.13436256]
[1772722882262,23.35576714,90.929,90.841,16.14906108]
[1772722882464,23.35576714,90.929,90.844,9.905]
[1772722882665,23.35576714,90.909,90.844,9.905]
[1772722883463,23.35576714,90.909,90.833,9.906]
[1772722883763,23.35576714,90.889,90.8,9.13436256]
[1772722883966,23.35576714,90.889,90.818,9.908]
[1772722884171,23.35576714,90.889,90.801,16.04153555]
[1772722884769,23.35576714,90.889,90.816,25.90937518]
[1772722885469,9.13436256,90.91,90.825,16.03384258]
[1772722885770,23.35576714,90.909,90.825,16.03384258]
[1772722886377,9.13436256,90.91,90.825,16.03384258]
[1772722886378,23.35576714,90.905,90.825,16.03384258]
[1772722886774,23.02826172,90.889,90.801,15.91041606]
[1772722887077,23.02826172,90.889,90.815,15.91041606]
[1772722888577,23.02826172,90.888,90.793,15.82762667]
[1772722888771,23.02826172,90.869,90.78,9.13436256]
[1772722888966,9.13436256,90.87,90.78,9.13436256]
[1772722888967,23.02826172,90.864,90.784,9.912]
[1772722889180,23.02826172,90.864,90.785,15.85623851]
[1772722889373,23.02826172,90.864,90.735,154.271]
[1772722889374,23.02826172,90.889,90.801,15.85623851]
[1772722890379,23.02826172,90.913,90.822,15.81873129]
[1772722892677,23.02826172,90.913,90.844,9.905]
[1772722892866,23.02826172,90.913,90.822,15.81873129]
[1772722893278,23.02826172,90.913,90.859,9.903]
[1772722893478,23.02826172,90.913,90.841,15.7580695]
[1772722893875,9.13436256,90.94,90.841,15.7580695]
[1772722894180,23.02826172,90.939,90.877,9.901]
[1772722894375,23.02826172,90.939,90.841,15.7580695]
[1772722894572,23.02826172,90.939,90.861,15.72221885]
[1772722894878,23.02826172,90.978,90.881,15.6870502]
[1772722895280,9.13436256,90.98,90.881,15.6870502]
[1772722895281,23.02826172,90.976,90.881,15.6870502]
[1772722896182,23.02826172,90.965,90.896,9.899]
[1772722896384,23.02826172,90.959,90.881,15.6870502]
[1772722896874,23.02826172,90.959,90.915,9.897]
[1772722897075,23.02826172,90.959,90.881,15.6870502]
[1772722898081,23.02826172,90.984,90.9,9.13436256]
[1772722898282,23.02826172,90.984,90.901,15.99015297]
[1772722898783,23.02826172,90.984,90.92,9.13436256]
[1772722898980,9.13436256,91.03,90.941,22.4398875]
[1772722899371,9.13436256,91.03,90.913,153.969]
[1772722899372,9.13436256,91.06,90.961,22.4398875]
[1772722899574,19.01836256,91.04,90.98,9.89]
[1772722899772,19.01836256,91.04,90.941,22.4398875]
[1772722899983,9.13436256,91.04,90.941,22.4398875]
[1772722900983,23.02826172,91.034,90.941,22.4398875]
[1772722901580,23.02826172,91.028,90.96,9.13436256]
[1772722901883,23.02826172,91.028,90.951,22.4398875]
[1772722902381,23.02826172,91.039,90.941,22.4398875]
[1772722902882,23.02826172,91.036,90.941,22.4398875]
[1772722903379,23.02826172,91.01,90.941,22.4398875]
[1772722903684,23.02826172,90.979,90.891,22.4398875]
[1772722904474,23.02826172,90.977,90.908,9.898]
[1772722904878,23.02826172,90.976,90.906,9.898]
[1772722905079,23.02826172,90.976,90.891,22.4398875]
[1772722905485,23.02826172,90.976,90.915,9.897]
[1772722906286,23.02826172,90.976,90.915,32.3368875]
[1772722906781,9.891,90.975,90.915,32.3368875]
[1772722907789,32.91926172,90.975,90.89,9.13436256]
[1772722907988,23.02826172,90.966,90.891,22.4398875]
[1772722908784,23.02826172,90.959,90.891,22.4398875]
[1772722908983,22.79335571,90.979,90.891,22.4398875]
[1772722909383,9.893,90.959,90.891,22.4398875]
[1772722909884,9.895,90.942,90.88,9.901]
[1772722910095,22.79335571,90.959,90.88,9.901]
[1772722911388,9.894,90.944,90.88,9.901]
[1772722912691,22.79335571,90.928,90.848,21.56234127]
[1772722913082,22.79335571,90.91,90.78,9.13436256]
[1772722913389,22.79335571,90.909,90.83,9.13436256]
[1772722913590,22.79335571,90.909,90.831,21.56234127]
[1772722913785,9.896,90.925,90.851,21.56234127]
[1772722913991,22.79335571,90.929,90.851,21.56234127]
[1772722914393,22.79335571,90.923,90.854,9.904]
[1772722914592,22.79335571,90.923,90.83,30.69670383]
[1772722914993,22.79335571,90.911,90.844,9.905]
[1772722915194,22.79335571,90.911,90.831,21.56234127]
[1772722916198,22.79335571,90.909,90.831,21.56234127]
[1772722916586,9.899,90.898,90.839,9.906]
[1772722916793,22.79335571,90.897,90.831,21.56234127]
[1772722917499,22.79335571,90.897,90.838,9.906]
[1772722918092,22.79335571,90.897,90.831,21.56234127]
[1772722918299,22.79335571,90.889,90.827,9.907]
[1772722918691,22.79335571,90.885,90.835,9.906]
[1772722919098,22.79335571,90.906,90.82,21.56234127]
[1772722919298,22.79335571,90.895,90.82,21.56234127]
[1772722919899,22.79335571,90.895,90.842,9.905]
[1772722920600,22.79335571,90.893,90.832,9.906]
[1772722921098,22.79335571,90.893,90.829,9.907]
[1772722921696,22.79335571,90.893,90.81,9.13436256]
[1772722921901,22.79335571,90.893,90.8,21.56234127]
[1772722922294,22.79335571,90.882,90.8,21.56234127]
[1772722923094,24.70865332,90.907,90.819,21.56234127]
[1772722923300,22.79335571,90.889,90.798,21.56234127]
[1772722923695,22.79335571,90.889,90.819,21.56234127]
[1772722924001,22.79335571,90.909,90.821,21.56234127]
[1772722924903,22.79335571,90.909,90.841,21.56234127]
[1772722925402,22.79335571,90.909,90.853,9.904]
[1772722925903,9.13436256,90.93,90.79,9.13436256]
[1772722925904,22.79335571,90.93,90.861,21.56234127]
[1772722926401,22.79335571,90.93,90.796,154.167]
[1772722926402,22.79335571,90.93,90.779,27.25841483]
[1772722926604,22.79335571,90.905,90.821,21.56234127]
[1772722927306,22.79335571,90.927,90.844,21.56234127]
[1772722928100,22.79335571,90.949,90.861,21.56234127]
[1772722928300,9.896,90.928,90.87,9.902]
[1772722928506,9.896,90.928,90.861,21.56234127]
[1772722929003,22.79335571,90.949,90.861,21.56234127]
[1772722929502,22.79335571,90.929,90.841,21.56234127]
[1772722930007,9.898,90.906,90.848,9.905]
[1772722930205,22.79335571,90.929,90.841,21.56234127]
[1772722930410,22.79335571,90.905,90.841,21.56234127]
[1772722930704,22.79335571,90.905,90.821,21.56234127]
[1772722931103,22.79335571,90.897,90.801,21.56234127]
[1772722931311,22.79335571,90.879,90.781,21.56234127]
[1772722932105,22.79335571,90.879,90.809,9.909]
[1772722932507,22.79335571,90.879,90.79,9.13523067]
[1772722932702,22.79335571,90.879,90.791,21.56234127]
[1772722933402,22.79335571,90.876,90.791,21.56234127]
[1772722933600,22.79335571,90.869,90.791,21.56234127]
[1772722934809,9.13523067,90.89,90.814,21.56234127]
[1772722935109,22.79335571,90.889,90.814,21.56234127]
[1772722935305,22.79335571,90.889,90.834,9.906]
[1772722935704,22.79335571,90.889,90.814,21.56234127]
[1772722935900,22.79335571,90.889,90.836,9.906]
[1772722936304,22.79335571,90.889,90.814,21.56234127]
[1772722936510,22.79335571,90.889,90.82,9.908]
[1772722936702,22.79335571,90.889,90.82,31.47034127]
[1772722936907,22.79335571,90.889,90.821,21.56234127]
[1772722937103,22.79335571,90.889,90.78,9.13523067]
[1772722937407,22.79335571,90.849,90.741,21.56234127]
[1772722937905,22.79335571,90.843,90.767,21.56234127]
[1772722938411,22.79335571,90.843,90.768,9.913]
[1772722938611,22.79335571,90.843,90.741,21.56234127]
[1772722938812,22.07463732,90.826,90.745,9.916]
[1772722939212,22.07463732,90.826,90.746,23.12792793]
[1772722939513,22.07463732,90.826,90.762,23.12792793]
[1772722939808,22.07463732,90.856,90.762,23.12792793]
[1772722940204,22.07463732,90.846,90.771,9.913]
[1772722940607,22.07463732,90.846,90.772,23.12792793]
[1772722940806,22.07463732,90.846,90.774,23.12792793]
[1772722941315,22.07463732,90.846,90.761,23.12792793]
[1772722941510,22.07463732,90.844,90.769,9.913]
[1772722941909,31.97963732,90.844,90.77,23.12792793]
[1772722942613,9.906,90.835,90.772,9.913]
[1772722942813,9.906,90.835,90.77,23.12792793]
[1772722943311,9.906,90.835,90.76,9.13523067]
[1772722943312,22.07463732,90.864,90.772,23.12792793]
[1772722943511,22.07463732,90.889,90.801,23.12792793]
[1772722944202,22.07463732,90.919,90.821,23.12792793]
[1772722944604,22.07463732,90.918,90.841,23.12792793]
[1772722945008,22.07463732,90.918,90.847,9.905]
[1772722945210,22.07463732,90.918,90.847,23.12792793]
[1772722945507,22.07463732,90.918,90.851,9.904]
[1772722946326,22.07463732,90.918,90.847,23.12792793]
[1772722946615,22.07463732,90.918,90.84,9.13523067]
[1772722946815,22.07463732,90.918,90.825,23.12792793]
[1772722947707,23.03358435,90.899,90.803,22.92852361]
[1772722948310,9.901,90.884,90.81,9.909]
[1772722948515,23.03358435,90.883,90.81,9.909]
[1772722948714,23.03358435,90.879,90.803,22.92852361]
[1772722949214,23.03358435,90.879,90.78,9.13523067]
[1772722949215,23.03358435,90.879,90.781,22.92852361]
[1772722949413,23.03358435,90.879,90.8,9.13523067]
[1772722949611,23.03358435,90.879,90.801,22.92852361]
[1772722950116,23.03358435,90.879,90.82,9.908]
[1772722950415,23.03358435,90.879,90.801,22.92852361]
[1772722950816,23.03358435,90.879,90.812,9.909]
[1772722951017,23.03358435,90.879,90.801,22.92852361]
[1772722953421,23.03358435,90.879,90.809,9.909]
[1772722953620,9.13523067,90.9,90.809,22.92852361]
[1772722953916,23.03358435,90.902,90.821,22.92852361]
[1772722954523,23.03358435,90.902,90.78,9.13523067]
[1772722954524,23.03358435,90.899,90.799,22.92852361]
[1772722954816,23.03358435,90.871,90.799,22.92852361]
[1772722955021,23.03358435,90.871,90.778,22.92852361]
[1772722955424,23.03358435,90.859,90.781,9.912]
[1772722955617,23.03358435,90.857,90.751,22.92852361]
[1772722955820,23.03358435,90.855,90.751,22.92852361]
[1772722956020,23.03358435,90.853,90.751,22.92852361]
[1772722956219,23.03358435,90.851,90.773,9.913]
[1772722956424,23.03358435,90.839,90.751,22.92852361]
[1772722956625,23.03358435,90.839,90.775,22.92852361]
[1772722957220,23.03358435,90.839,90.777,9.912]
[1772722957420,23.03358435,90.839,90.775,22.92852361]
[1772722957916,20.33057118,90.889,90.72,71.13523067]
[1772722957917,23.03358435,90.837,90.72,9.13523067]
[1772722958120,23.03358435,90.837,90.665,154.391]
[1772722958121,23.03358435,90.723,90.572,22.92852361]
[1772722958324,18.27046134,90.73,90.572,22.92852361]
[1772722958325,23.03358435,90.669,90.572,22.92852361]
[1772722958515,23.03358435,90.649,90.541,22.92852361]
[1772722958715,23.03358435,90.649,90.561,22.92852361]
[1772722959219,23.03358435,90.673,90.581,22.92852361]
[1772722959416,20.33057118,90.757,90.564,154.563]
[1772722959417,23.03358435,90.727,90.601,22.92852361]
[1772722959620,23.03358435,90.699,90.616,9.93]
[1772722959922,23.03358435,90.699,90.601,22.92852361]
[1772722960312,23.03358435,90.699,90.63,9.928]
[1772722960512,23.03358435,90.699,90.601,22.92852361]
[1772722961416,23.03358435,90.719,90.63,22.92852361]
[1772722961615,23.03358435,90.719,90.606,22.92852361]
[1772722961819,23.03358435,90.699,90.606,22.92852361]
[1772722962216,23.03358435,90.699,90.621,22.92852361]
[1772722962419,23.03358435,90.754,90.661,22.92852361]
[1772722962620,23.03358435,90.754,90.679,9.923]
[1772722963328,23.03358435,90.754,90.665,9.925]
[1772722963826,23.03358435,90.739,90.662,9.925]
[1772722964323,23.03358435,90.739,90.641,22.92852361]
[1772722964926,9.13523067,90.76,90.661,22.92852361]
[1772722965130,23.03358435,90.759,90.661,22.92852361]
[1772722965323,23.03358435,90.759,90.676,9.923]
[1772722965625,23.03358435,90.759,90.661,22.92852361]
[1772722965825,9.13523067,90.78,90.681,22.92852361]
[1772722966127,23.03358435,90.779,90.681,22.92852361]
[1772722966519,23.03358435,90.779,90.701,22.92852361]
[1772722967121,23.03358435,90.799,90.701,22.92852361]
[1772722967326,23.03358435,90.799,90.718,9.919]
[1772722967718,23.03358435,90.779,90.704,9.92]
[1772722967923,23.03358435,90.759,90.661,22.92852361]
[1772722968122,23.03358435,90.719,90.64,22.92852361]
[1772722968325,9.13523067,90.7,90.635,9.928]
[1772722968520,23.03358435,90.699,90.635,9.928]
[1772722968727,23.03358435,90.699,90.604,24.23905793]
[1772722968922,23.03358435,90.699,90.632,9.928]
[1772722969128,23.03358435,90.699,90.604,24.23905793]
[1772722970227,23.03358435,90.699,90.644,9.927]
[1772722971129,23.03358435,90.699,90.631,9.928]
[1772722972232,23.03358435,90.699,90.643,9.927]
[1772722972731,9.13523067,90.72,90.655,9.926]
[1772722973233,32.95396678,90.72,90.655,9.926]
[1772722973629,23.81873611,90.719,90.643,9.927]
[1772722974025,23.81873611,90.719,90.621,24.23905793]
[1772722974431,23.81873611,90.719,90.661,9.925]
[1772722974831,9.13523067,90.72,90.674,9.924]
[1772722975032,23.81873611,90.739,90.654,24.23905793]
[1772722975333,23.81873611,90.759,90.686,9.922]
[1772722975636,23.81873611,90.739,90.661,24.23905793]
[1772722977132,23.81873611,90.739,90.687,9.922]
[1772722977934,23.81873611,90.739,90.676,9.923]
[1772722978336,9.13523067,90.76,90.661,24.23905793]
[1772722978539,9.13523067,90.76,90.696,9.921]
[1772722978738,9.13523067,90.76,90.682,24.23905793]
[1772722979132,23.81873611,90.759,90.691,9.922]
[1772722979533,23.81873611,90.739,90.66,24.23905793]
[1772722979838,23.81873611,90.719,90.634,24.23905793]
[1772722980637,9.13523067,90.74,90.656,24.23905793]
[1772722980832,9.13523067,90.74,90.661,24.23905793]
[1772722981033,23.81873611,90.739,90.68,9.923]
[1772722981433,23.81873611,90.739,90.661,24.23905793]
[1772722982143,23.81873611,90.739,90.64,9.13523067]
[1772722982441,23.81873611,90.724,90.641,24.23905793]
[1772722982940,23.81873611,90.724,90.674,9.924]
[1772722983137,9.13523067,90.74,90.641,24.23905793]
[1772722983338,154.106,90.833,90.661,24.23905793]
[1772722983339,23.81873611,90.752,90.661,24.23905793]
[1772722983842,23.81873611,90.752,90.708,9.92]
[1772722984238,23.81873611,90.739,90.661,24.23905793]
[1772722984436,23.81873611,90.739,90.593,154.512]
[1772722984437,23.81873611,90.719,90.658,9.925]
[1772722984636,23.81873611,90.719,90.635,24.23905793]
[1772722984840,23.81873611,90.718,90.635,24.23905793]
[1772722985040,23.81873611,90.743,90.651,24.23905793]
[1772722985240,23.81873611,90.739,90.651,24.23905793]
[1772722986244,23.81873611,90.737,90.651,24.23905793]
[1772722986738,33.73573611,90.734,90.668,9.924]
[1772722986940,9.13523067,90.74,90.668,9.924]
[1772722986941,23.81873611,90.733,90.668,9.924]
[1772722987143,154.173,90.794,90.651,24.23905793]
[1772722987144,23.81873611,90.756,90.651,24.23905793]
[1772722987640,33.73373611,90.752,90.673,24.23905793]
[1772722987846,23.81873611,90.751,90.673,24.23905793]
[1772722988239,23.81873611,90.75,90.69,9.922]
[1772722988748,23.81873611,90.75,90.673,24.23905793]
[1772722989143,23.81873611,90.75,90.65,19.853]
[1772722989144,9.13523067,90.74,90.65,9.13523067]
[1772722989349,9.13523067,90.74,90.649,24.23905793]
[1772722989350,23.81873611,90.719,90.627,24.23905793]
[1772722990353,9.92,90.706,90.648,9.926]
[1772722990749,23.81873611,90.718,90.627,24.23905793]
[1772722991354,23.81873611,90.686,90.62,9.93]
[1772722991551,23.81873611,90.686,90.596,24.23905793]
[1772722992453,23.81873611,90.683,90.614,9.93]
[1772722992651,23.81873611,90.709,90.611,24.23905793]
[1772722993048,23.81873611,90.729,90.633,24.23905793]
[1772722993449,23.81873611,90.709,90.611,24.23905793]
[1772722994550,23.81873611,90.709,90.621,24.23905793]
[1772722994746,23.81873611,90.707,90.64,9.927]
[1772722994949,23.81873611,90.707,90.621,24.23905793]
[1772722995149,19.829,90.761,90.62,9.17066958]
[1772722995150,23.81873611,90.739,90.641,24.23905793]
[1772722995448,23.81873611,90.739,90.665,24.23905793]
[1772722995650,23.81873611,90.719,90.631,24.23905793]
[1772722995854,23.81873611,90.719,90.65,9.926]
[1772722996049,23.81873611,90.719,90.631,24.23905793]
[1772722996249,23.81873611,90.717,90.631,24.23905793]
[1772722996449,23.81873611,90.715,90.631,24.23905793]
[1772722996650,23.81873611,90.713,90.631,24.23905793]
[1772722996852,23.81873611,90.711,90.631,24.23905793]
[1772722997051,23.81873611,90.709,90.631,24.23905793]
[1772722997552,9.921,90.698,90.634,9.928]
[1772722997753,8.86133946,90.708,90.631,24.23905793]
[1772722998054,23.81873611,90.709,90.631,24.23905793]
[1772722998250,9.17066958,90.72,90.595,24.23905793]
[1772722998251,23.81873611,90.693,90.595,24.23905793]
[1772722998551,23.81873611,90.691,90.595,24.23905793]
[1772722998747,9.17066958,90.7,90.623,9.929]
[1772722998748,23.81873611,90.688,90.623,9.929]
[1772722999253,23.91638497,90.686,90.623,9.929]
[1772722999453,23.91638497,90.682,90.623,9.929]
[1772722999654,32.80855147,90.681,90.613,9.93]
[1772722999849,9.17066958,90.68,90.613,9.93]
[1772723000149,23.91638497,90.678,90.629,9.929]
[1772723000348,23.91638497,90.701,90.611,22.79881098]
[1772723000554,9.922,90.692,90.611,22.79881098]
[1772723000746,8.90681683,90.691,90.611,22.79881098]
[1772723000943,8.90681683,90.69,90.639,9.927]
[1772723001145,23.91638497,90.688,90.611,22.79881098]
[1772723001348,8.90681683,90.687,90.611,22.79881098]
[1772723001649,9.17066958,90.71,90.631,22.79881098]
[1772723001650,19.22101093,90.71,90.631,22.79881098]
[1772723001850,23.91638497,90.697,90.611,22.79881098]
[1772723002054,31.84635957,90.71,90.611,22.79881098]
[1772723002055,23.91638497,90.694,90.611,22.79881098]
[1772723002248,23.91638497,90.671,90.59,31.96948056]
[1772723002451,23.91638497,90.669,90.591,22.79881098]
[1772723002647,23.91638497,90.667,90.591,22.79881098]
[1772723002851,9.925,90.664,90.611,9.93]
[1772723003045,8.9174107,90.663,90.611,9.93]
[1772723003250,8.9174107,90.662,90.611,9.93]
[1772723003455,23.91638497,90.66,90.602,9.932]
[1772723003649,9.17066958,90.65,90.566,22.79881098]
[1772723003959,23.91638497,90.648,90.566,22.79881098]
[1772723004152,8.9174107,90.647,90.566,22.79881098]
[1772723004360,8.9174107,90.646,90.571,22.79881098]
[1772723004559,8.9174107,90.645,90.571,22.79881098]
[1772723004856,8.9174107,90.644,90.571,22.79881098]
[1772723005054,8.9174107,90.643,90.571,22.79881098]
[1772723005256,23.91638497,90.668,90.581,22.79881098]
[1772723005450,23.91638497,90.689,90.621,22.79881098]
[1772723005651,23.91638497,90.672,90.593,22.79881098]
[1772723006057,9.17066958,90.66,90.572,22.79881098]
[1772723006258,23.37304599,90.655,90.572,22.79881098]
[1772723006951,23.37304599,90.639,90.577,9.934]
[1772723007152,23.37304599,90.639,90.552,23.45628808]
[1772723007352,9.928,90.638,90.578,9.934]
[1772723007560,23.37304599,90.637,90.578,9.934]
[1772723008057,23.37304599,90.634,90.578,9.934]
[1772723008460,23.37304599,90.634,90.552,23.45628808]
[1772723008461,23.37304599,90.634,90.568,9.935]
[1772723008859,23.37304599,90.619,90.567,9.935]
[1772723009153,23.37304599,90.619,90.531,23.45628808]
[1772723009359,23.37304599,90.619,90.477,154.712]
[1772723009360,9.17066958,90.64,90.59,9.933]
[1772723009561,23.37304599,90.639,90.562,23.45628808]
[1772723010060,23.37304599,90.639,90.54,32.62695766]
[1772723010256,23.37304599,90.639,90.541,23.45628808]
[1772723010652,9.17066958,90.64,90.556,9.937]
[1772723010653,23.37304599,90.636,90.556,9.937]
[1772723010857,23.37304599,90.636,90.541,23.45628808]
[1772723011256,154.332,90.7,90.541,23.45628808]
[1772723011257,23.37304599,90.619,90.541,23.45628808]
[1772723011663,23.37304599,90.639,90.551,23.45628808]
[1772723011963,23.37304599,90.639,90.572,23.45628808]
[1772723012460,23.37304599,90.599,90.526,23.45628808]
[1772723012853,23.37304599,90.599,90.549,9.937]
[1772723013053,32.54371557,90.62,90.531,23.45628808]
[1772723013256,23.37304599,90.639,90.551,23.45628808]
[1772723014161,23.37304599,90.616,90.544,9.938]
[1772723014368,23.37304599,90.616,90.531,23.45628808]
[1772723015263,23.37304599,90.614,90.531,23.45628808]
[1772723015462,23.37304599,90.599,90.531,23.45628808]
[1772723015960,23.37304599,90.598,90.531,23.45628808]
[1772723016170,23.37304599,90.598,90.499,23.45628808]
[1772723016561,23.37304599,90.598,90.511,9.942]
[1772723016760,23.37304599,90.598,90.499,23.45628808]
[1772723016963,9.17066958,90.6,90.499,23.45628808]
[1772723016964,23.37304599,90.579,90.499,23.45628808]
[1772723017272,23.37304599,90.559,90.489,9.944]
[1772723017466,23.37304599,90.559,90.478,23.45628808]
[1772723017866,23.37304599,90.558,90.478,23.45628808]
[1772723018263,9.17066958,90.58,90.478,23.45628808]
[1772723018264,23.37304599,90.58,90.49,9.17066958]
[1772723018469,23.37304599,90.579,90.491,23.45628808]
[1772723018870,23.37304599,90.579,90.502,23.45628808]
[1772723019368,9.934,90.577,90.505,33.39828808]
[1772723019569,9.934,90.577,90.506,23.45628808]
[1772723019771,23.37304599,90.576,90.506,23.45628808]
[1772723020066,23.37304599,90.57,90.497,9.943]
[1772723020370,9.17066958,90.56,90.485,23.45628808]
[1772723020574,9.17066958,90.56,90.488,23.45628808]
[1772723020975,23.37304599,90.57,90.488,23.45628808]
[1772723021171,23.37304599,90.57,90.49,9.17066958]
[1772723021375,23.37304599,90.57,90.505,23.45628808]
[1772723022079,23.37304599,90.591,90.511,23.45628808]
[1772723022372,23.37304599,90.579,90.491,23.45628808]
[1772723022871,9.936,90.563,90.503,23.45628808]
[1772723023073,23.37304599,90.579,90.503,23.45628808]
[1772723024974,23.37304599,90.569,90.484,23.45628808]
[1772723025577,9.938,90.544,90.484,23.45628808]
[1772723026378,23.37304599,90.556,90.484,23.45628808]
[1772723026682,23.37304599,90.556,90.486,23.45628808]
[1772723027075,23.37304599,90.576,90.514,9.941]
[1772723027275,23.37304599,90.576,90.514,23.45628808]
[1772723027474,9.17066958,90.59,90.514,23.45628808]
[1772723027877,23.37304599,90.596,90.514,23.45628808]
[1772723028077,9.17066958,90.61,90.521,23.45628808]
[1772723028584,23.37304599,90.609,90.521,23.45628808]
[1772723028786,23.37304599,90.609,90.54,22.12000682]
[1772723029483,22.20644618,90.606,90.527,22.12000682]
[1772723029988,22.20644618,90.606,90.53,22.12000682]
[1772723030880,19.853,90.652,90.491,19.888]
[1772723030881,9.93,90.618,90.541,22.12000682]
[1772723031079,22.20644618,90.629,90.541,22.12000682]
[1772723031679,31.37711576,90.65,90.541,22.12000682]
[1772723031883,22.20644618,90.648,90.541,22.12000682]
[1772723032082,22.20644618,90.629,90.541,22.12000682]
[1772723032284,9.931,90.61,90.541,22.12000682]
[1772723032487,22.20644618,90.629,90.541,22.12000682]
[1772723032778,9.929,90.623,90.555,22.12000682]
[1772723032984,22.20644618,90.632,90.555,22.12000682]
[1772723033778,22.20644618,90.629,90.555,22.12000682]
[1772723034283,22.20644618,90.625,90.555,22.12000682]
[1772723035678,22.20644618,90.622,90.539,9.938]
[1772723036078,22.20644618,90.622,90.533,22.12000682]
[1772723036884,22.20644618,90.618,90.533,22.12000682]
[1772723038282,22.20644618,90.612,90.551,9.937]
[1772723038492,22.20644618,90.612,90.533,22.12000682]
[1772723039087,22.20644618,90.61,90.534,9.939]
[1772723039886,22.20644618,90.61,90.538,22.12000682]
[1772723040889,22.20644618,90.61,90.49,19.888]
[1772723040890,9.93,90.62,90.556,9.937]
[1772723041089,22.20644618,90.619,90.521,22.12000682]
[1772723041289,9.933,90.585,90.521,22.12000682]
[1772723041589,22.20644618,90.59,90.521,22.12000682]
[1772723041784,22.20644618,90.619,90.521,22.12000682]
[1772723041986,22.20644618,90.599,90.521,22.12000682]
[1772723042183,22.20644618,90.597,90.491,22.12000682]
[1772723042389,9.937,90.555,90.491,22.12000682]
[1772723042591,22.20644618,90.555,90.491,22.12000682]
[1772723043189,30.92989205,90.554,90.491,22.12000682]
[1772723043393,22.20644618,90.554,90.491,22.12000682]
[1772723043593,32.14344618,90.554,90.491,22.12000682]
[1772723043801,22.20644618,90.552,90.465,22.12000682]
[1772723044094,9.17066958,90.56,90.465,22.12000682]
[1772723044095,22.20644618,90.539,90.465,22.12000682]
[1772723044290,22.20644618,90.537,90.465,22.12000682]
[1772723044493,22.20644618,90.535,90.465,22.12000682]
[1772723044691,22.20644618,90.533,90.441,22.12000682]
[1772723044894,22.20644618,90.519,90.441,22.12000682]
[1772723045092,9.17066958,90.5,90.423,22.12000682]
[1772723045296,22.20644618,90.516,90.452,22.12000682]
[1772723045496,9.94,90.528,90.452,22.12000682]
[1772723045697,8.70996349,90.532,90.46,9.17066958]
[1772723045989,10.12608418,90.562,90.481,22.12000682]
[1772723046193,22.20644618,90.572,90.481,22.12000682]
[1772723046497,22.20644618,90.57,90.485,22.12000682]
[1772723046800,22.20644618,90.589,90.501,22.12000682]
[1772723046995,30.92897661,90.588,90.501,22.12000682]
[1772723047296,40.11016584,90.627,90.456,19.896]
[1772723047297,22.20644618,90.609,90.521,22.12000682]
[1772723047597,8.73119401,90.608,90.521,22.12000682]
[1772723047790,8.73119401,90.608,90.541,22.12000682]
[1772723047995,19.29675376,90.63,90.541,22.12000682]
[1772723047996,22.20644618,90.628,90.541,22.12000682]
[1772723048191,22.20644618,90.626,90.541,22.12000682]
[1772723048392,9.931,90.609,90.543,9.938]
[1772723048598,9.931,90.609,90.544,22.12000682]
[1772723048796,30.93855447,90.622,90.544,22.12000682]
[1772723048996,9.93,90.619,90.546,22.12000682]
[1772723049192,10.12608418,90.645,90.546,22.12000682]
[1772723049193,22.20644618,90.62,90.546,22.12000682]
[1772723049396,9.17066958,90.61,90.525,22.12000682]
[1772723049595,9.933,90.586,90.525,22.12000682]
[1772723049999,9.931,90.607,90.537,22.12000682]
[1772723050197,22.20644618,90.609,90.537,22.12000682]
[1772723050603,22.20644618,90.629,90.543,22.12000682]
[1772723050802,8.66733098,90.628,90.543,22.12000682]
[1772723050996,8.66733098,90.627,90.543,22.12000682]
[1772723051198,9.17066958,90.65,90.543,22.12000682]
[1772723051199,22.20644618,90.625,90.543,32.05800682]
[1772723051497,9.928,90.632,90.54,9.17066958]
[1772723051498,22.20644618,90.623,90.544,22.12000682]
[1772723051702,20.05408418,90.632,90.544,22.12000682]
[1772723051703,22.20644618,90.621,90.544,22.12000682]
[1772723051898,22.20644618,90.619,90.544,22.12000682]
[1772723052100,22.20644618,90.617,90.544,22.12000682]
[1772723052296,22.20644618,90.615,90.524,22.12000682]
[1772723052495,13.52125302,90.639,90.52,9.17066958]
[1772723052496,22.20644618,90.609,90.52,9.17066958]
[1772723052703,22.20644618,90.606,90.521,22.12000682]
[1772723052903,22.20644618,90.582,90.497,22.12000682]